bitfinex/quotes_SOLUSD_20250912
["timestamp","ask_amount","ask_price","bid_price","bid_amount"]
[1757637934387,21.57497303,231.75,231.46,0.14862829]
[1757637934388,7.18493883,231.57,231.47,0.68]
[1757637934591,13.59559401,231.49,231.46,0.14862829]
[1757637934770,26.0,231.61,231.46,0.14862829]
[1757637934771,7.18493883,231.48,231.46,0.14862829]
[1757637935089,20.0,231.65,231.46,0.14862829]
[1757637935252,7.18493883,231.55,231.46,1.01269237]
[1757637935454,7.18493883,231.51,231.46,1.01268731]
[1757637935687,13.59559401,231.52,231.46,0.14862829]
[1757637935892,7.18493883,231.53,231.46,0.14862829]
[1757637935893,13.59559401,231.53,231.46,0.14862829]
[1757637936186,13.59559401,231.55,231.46,1.01270081]
[1757637936691,13.59559401,231.57,231.46,3.17290127]
[1757637936865,13.59559401,231.57,231.46,0.14862829]
[1757637936866,13.59559401,231.53,231.46,0.14862829]
[1757637937058,7.18493883,231.5,231.46,0.14862829]
[1757637937266,26.0,231.62,231.46,0.14862829]
[1757637937267,20.78053284,231.47,231.46,0.14862829]
[1757637937795,13.59559401,231.47,231.46,0.14862829]
[1757637937961,20.78053284,231.47,231.46,0.14862829]
[1757637938668,13.59559401,231.47,231.46,0.14862829]
[1757637939373,13.59559401,231.47,231.33,0.86454581]
[1757637939576,13.59559401,231.47,231.34,0.68]
[1757637939986,13.59559401,231.51,231.36,26.0]
[1757637940182,13.59559401,231.51,231.37,3.70545705]
[1757637940391,7.18493883,231.53,231.38,0.68]
[1757637940597,7.18493883,231.49,231.38,0.68]
[1757637940798,7.18493883,231.53,231.38,0.68]
[1757637941097,10.79129543,231.67,231.33,26.0]
[1757637941098,7.18493883,231.45,231.33,26.0]
[1757637941388,7.18493883,231.43,231.33,0.68]
[1757637941695,13.59559401,231.58,231.33,0.68]
[1757637941855,26.0,231.61,231.33,0.68]
[1757637942060,20.0,231.66,231.33,0.68]
[1757637942061,13.59559401,231.52,231.38,0.86437894]
[1757637942279,7.18493883,231.57,231.39,0.68]
[1757637942792,13.59559401,231.68,231.39,0.68]
[1757637942997,13.59559401,231.46,231.38,0.86437894]
[1757637943178,20.78053284,231.46,231.38,0.86437894]
[1757637943495,7.18493883,231.46,231.36,0.68]
[1757637944057,13.59559401,231.47,231.36,0.68]
[1757637944262,4.32005773,231.48,231.3,0.68]
[1757637944580,4.32005773,231.48,231.29,3.02650352]
[1757637944581,13.59559401,231.47,231.29,3.02650352]
[1757637944773,28.71373145,231.51,231.29,3.02650352]
[1757637944964,13.59559401,231.41,231.3,0.68]
[1757637945159,4.31946784,231.51,231.3,0.68]
[1757637945379,13.59559401,231.53,231.3,14.15233895]
[1757637945577,7.18493883,231.47,231.36,0.03]
[1757637945758,13.59559401,231.55,231.36,0.03]
[1757637945959,13.59559401,231.55,231.37,0.68]
[1757637946173,20.0,231.67,231.37,1.5443836]
[1757637946381,13.59559401,231.63,231.36,0.03]
[1757637946600,13.59559401,231.46,231.36,0.03]
[1757637946762,26.0,231.54,231.36,0.03]
[1757637946763,13.59559401,231.49,231.36,0.03]
[1757637946959,13.59559401,231.36,231.33,0.03]
[1757637947164,20.0,231.44,231.33,0.03]
[1757637947165,13.59559401,231.34,231.33,0.03]
[1757637947467,26.0,231.44,231.23,0.18907237]
[1757637947790,7.18493883,231.33,231.23,0.18907237]
[1757637948097,26.0,231.45,231.23,1.73398268]
[1757637948386,13.59559401,231.37,231.23,1.73398268]
[1757637948790,7.18493883,231.39,231.23,3.89633185]
[1757637948959,7.18493883,231.38,231.23,3.89633185]
[1757637949160,13.59559401,231.32,231.23,0.18907237]
[1757637949391,39.59559401,231.44,231.23,0.18907237]
[1757637949564,13.59559401,231.36,231.23,0.18907237]
[1757637949764,7.18493883,231.25,231.23,0.18907237]
[1757637949985,20.0,231.46,231.23,0.18907237]
[1757637950292,13.59559401,231.29,231.23,0.18907237]
[1757637950783,7.18493883,231.33,231.23,1.05398355]
[1757637950964,13.59559401,231.32,231.23,1.05398355]
[1757637951163,13.59559401,231.32,231.23,0.18907237]
[1757637951492,4.31984102,231.49,231.23,1.05400361]
[1757637951666,7.18493883,231.42,231.24,0.68]
[1757637951865,7.18493883,231.42,231.26,26.0]
[1757637952065,7.18493883,231.42,231.27,0.68]
[1757637952266,7.18493883,231.38,231.24,0.86490226]
[1757637952472,13.59559401,231.38,231.25,0.68]
[1757637952792,15.11617863,231.54,231.25,0.68]
[1757637953097,13.59559401,231.41,231.25,0.68]
[1757637953475,4.31890818,231.54,231.25,1.11243243]
[1757637953686,8.18832733,231.46,231.26,0.68]
[1757637953873,13.59559401,231.46,231.29,26.0]
[1757637954071,20.0,231.66,231.3,1.11233895]
[1757637954374,29.55963557,231.84,231.29,26.0]
[1757637954375,8.18832733,231.49,231.31,3.70624183]
[1757637954579,8.18832733,231.48,231.31,3.70624183]
[1757637954788,13.59559401,231.47,231.31,3.70624183]
[1757637955096,15.10508825,231.71,231.32,0.69]
[1757637955097,8.18832733,231.52,231.32,0.69]
[1757637955275,56.68378575,231.71,231.32,0.69]
[1757637955276,56.68378575,231.71,231.34,26.0]
[1757637955477,20.0,231.7,231.35,0.69]
[1757637955689,8.18832733,231.52,231.35,0.69]
[1757637955883,36.68378575,231.71,231.35,0.69]
[1757637956193,8.18832733,231.56,231.39,26.0]
[1757637956373,8.18832733,231.56,231.4,0.69]
[1757637956578,10.79242372,231.65,231.4,0.69]
[1757637956767,4.31555325,231.72,231.4,1.12215211]
[1757637956965,0.06,231.79,231.4,1.12215211]
[1757637956966,4.31532173,231.74,231.41,26.69]
[1757637957172,4.3144361,231.78,231.47,26.0]
[1757637957385,4.3144361,231.78,231.48,1.12200276]
[1757637957590,0.06,231.79,231.52,13.59559401]
[1757637957796,0.06,231.79,231.59,26.0]
[1757637957988,0.06,231.79,231.6,0.43177892]
[1757637958184,0.06,231.79,231.62,0.86348329]
[1757637958185,8.24832733,231.79,231.62,0.86348329]
[1757637958477,0.06,231.79,231.61,0.69]
[1757637958679,8.18832733,231.73,231.61,0.69]
[1757637958909,0.06,231.79,231.61,26.69]
[1757637959196,8.18832733,231.77,231.61,26.69]
[1757637959407,8.18832733,231.74,231.61,26.69]
[1757637959576,0.06,231.79,231.61,26.69]
[1757637959778,0.06,231.79,231.62,0.69]
[1757637960002,13.59559401,231.76,231.62,0.69]
[1757637960205,13.59559401,231.68,231.55,0.69]
[1757637960506,8.18832733,231.69,231.55,0.69]
[1757637960685,0.06,231.79,231.55,0.69]
[1757637960887,8.24832733,231.79,231.56,0.43185351]
[1757637961088,0.06,231.79,231.57,64.49]
[1757637961407,8.18832733,231.78,231.58,64.92181621]
[1757637961606,13.59559401,231.77,231.59,0.69]
[1757637961785,13.59559401,231.75,231.6,0.43177892]
[1757637961984,13.59559401,231.75,231.59,0.69]
[1757637961985,13.59559401,231.71,231.59,0.69]
[1757637962189,8.18832733,231.66,231.54,0.69]
[1757637962509,13.59559401,231.63,231.5,0.69]
[1757637962677,13.59559401,231.66,231.5,0.69]
[1757637962877,13.59559401,231.66,231.45,31.06]
[1757637962878,13.59559401,231.66,231.49,0.69]
[1757637963100,21.5761087,231.74,231.49,0.69]
[1757637963307,8.18832733,231.64,231.49,0.69]
[1757637963507,13.59559401,231.63,231.49,0.69]
[1757637963801,10.78949991,231.71,231.49,0.69]
[1757637964004,13.59559401,231.7,231.49,0.69]
[1757637964317,8.18832733,231.63,231.49,64.05]
[1757637964484,8.18832733,231.59,231.45,31.06]
[1757637964685,4.31726719,231.63,231.45,31.06]
[1757637964686,8.18832733,231.56,231.45,31.06]
[1757637964998,8.18832733,231.54,231.45,31.06]
[1757637965315,8.18832733,231.58,231.45,31.06]
[1757637965892,13.59559401,231.62,231.45,31.06]
[1757637966095,8.18832733,231.5,231.45,31.06]
[1757637966294,17.91581531,231.47,231.28,31.04]
[1757637966481,17.91581531,231.47,231.29,1.55468259]
[1757637966682,26.0,231.6,231.3,14.16233895]
[1757637966907,8.18832733,231.51,231.31,0.69]
[1757637967094,21.94166742,231.74,231.31,0.69]
[1757637967095,8.18832733,231.59,231.33,13.04]
[1757637967308,8.18832733,231.55,231.39,26.0]
[1757637967494,36.67745414,231.75,231.43,26.0]
[1757637967698,13.59559401,231.74,231.44,1.12207742]
[1757637968011,13.59559401,231.62,231.45,0.69]
[1757637968194,8.18832733,231.61,231.46,62.64]
[1757637968386,13.59559401,231.58,231.45,0.69]
[1757637968586,20.0,231.78,231.41,26.0]
[1757637968587,15.10052635,231.78,231.49,26.0]
[1757637968801,13.59559401,231.62,231.49,26.0]
[1757637968999,13.59559401,231.62,231.42,0.69]
[1757637969000,13.59559401,231.55,231.42,0.69]
[1757637969190,13.59559401,231.62,231.28,31.47237634]
[1757637969191,13.59559401,231.53,231.37,0.69]
[1757637969493,8.18832733,231.47,231.33,63.21]
[1757637969696,13.59559401,231.57,231.33,63.21]
[1757637969896,13.59559401,231.68,231.35,26.0]
[1757637970100,8.18832733,231.46,231.36,0.69]
[1757637970321,8.18832733,231.41,231.32,31.06]
[1757637970616,13.59559401,231.42,231.32,31.06]
[1757637970617,8.18832733,231.36,231.32,31.06]
[1757637970825,15.12270998,231.44,231.32,31.06]
[1757637970826,13.59559401,231.38,231.32,31.06]
[1757637970995,4.32054802,231.46,231.32,31.06]
[1757637971325,4.3202665,231.47,231.33,0.69]
[1757637971623,13.59559401,231.46,231.35,26.0]
[1757637971801,13.59559401,231.57,231.36,0.69]
[1757637972004,4.31723006,231.63,231.36,0.69]
[1757637972005,13.59559401,231.49,231.36,0.69]
[1757637972207,8.18832733,231.48,231.37,26.0]
[1757637972401,8.18832733,231.46,231.37,26.0]
[1757637972603,4.31982572,231.5,231.35,26.0]
[1757637972817,13.59559401,231.5,231.38,0.69]
[1757637973117,13.59559401,231.44,231.35,88.06]
[1757637973301,8.18832733,231.42,231.34,0.69]
[1757637973500,8.18832733,231.42,231.32,93.06]
[1757637973799,26.0,231.55,231.32,93.06]
[1757637973800,13.59559401,231.54,231.32,93.02]
[1757637973999,13.59559401,231.53,231.32,93.02]
[1757637974207,13.59559401,231.41,231.32,31.06]
[1757637974409,8.18832733,231.38,231.32,31.06]
[1757637974820,13.59559401,231.39,231.32,31.06]
[1757637974821,8.18832733,231.36,231.32,31.06]
[1757637974990,8.18832733,231.37,231.32,31.06]
[1757637975196,28.71977666,231.42,231.32,31.06]
[1757637975513,26.0,231.49,231.32,31.06]
[1757637975821,8.18832733,231.37,231.32,31.06]
[1757637976133,13.59559401,231.34,231.32,31.06]
[1757637976308,21.78392134,231.33,231.32,31.06]
[1757637976820,13.59559401,231.33,231.32,31.06]
[1757637977319,13.59559401,231.33,231.23,0.21907237]
[1757637977320,13.59559401,231.31,231.23,0.21907237]
[1757637977517,8.18832733,231.34,231.23,0.21907237]
[1757637977518,13.59559401,231.49,231.24,0.69]
[1757637977730,26.0,231.46,231.25,87.34]
[1757637978021,26.0,231.46,231.26,0.69]
[1757637978022,13.59559401,231.37,231.26,0.69]
[1757637978201,13.59559401,231.37,231.26,61.97]
[1757637978406,13.59559401,231.33,231.26,0.69]
[1757637978619,10.8034106,231.41,231.26,0.69]
[1757637978815,8.18832733,231.35,231.26,0.69]
[1757637979205,13.59559401,231.39,231.26,0.69]
[1757637979527,4.32152117,231.4,231.28,26.0]
[1757637979699,39.50904309,231.54,231.29,0.69]
[1757637979895,13.59559401,231.37,231.29,0.69]
[1757637980114,21.78392134,231.37,231.29,0.69]
[1757637980298,8.18832733,231.37,231.29,0.69]
[1757637980495,13.59559401,231.36,231.29,0.69]
[1757637980697,13.59559401,231.36,231.28,60.9]
[1757637980909,4.32031213,231.47,231.28,60.9]
[1757637980910,13.59559401,231.46,231.29,0.69]
[1757637981117,13.59559401,231.4,231.3,60.82]
[1757637981420,4.32031213,231.47,231.31,60.78]
[1757637981421,13.59559401,231.38,231.31,60.78]
[1757637981622,13.59559401,231.38,231.29,0.69]
[1757637981796,13.59559401,231.36,231.23,0.21907237]
[1757637981993,13.59559401,231.34,231.24,61.37]
[1757637982197,13.59559401,231.34,231.25,60.66]
[1757637982398,15.12084783,231.47,231.28,26.0]
[1757637982615,13.59559401,231.38,231.29,0.69]
[1757637982799,13.59559401,231.48,231.3,60.52]
[1757637983002,13.59559401,231.38,231.29,0.69]
[1757637983328,8.18832733,231.38,231.29,0.69]
[1757637983624,13.59559401,231.48,231.29,0.69]
[1757637983625,13.59559401,231.48,231.3,60.42]
[1757637983923,4.31890818,231.54,231.33,26.0]
[1757637984227,13.59559401,231.53,231.33,26.69]
[1757637984431,13.59559401,231.44,231.33,26.69]
[1757637984720,13.59559401,231.44,231.33,26.86455466]
[1757637984923,13.59559401,231.44,231.34,0.67]
[1757637985131,13.59559401,231.42,231.34,0.67]
[1757637985303,13.59559401,231.44,231.35,60.18]
[1757637985630,0.06,231.46,231.35,60.18]
[1757637985944,0.06,231.46,231.38,26.0]
[1757637986302,33.05584894,231.7,231.4,26.0]
[1757637986303,0.06,231.64,231.4,26.0]
[1757637986639,13.05584894,231.7,231.44,26.0]
[1757637986930,0.06,231.82,231.46,26.0]
[1757637986931,4.31590064,231.71,231.46,26.0]
[1757637987221,4.31590064,231.71,231.47,86.98202142]
[1757637987431,0.06,231.73,231.48,0.67]
[1757637987432,4.37547317,231.73,231.48,0.67]
[1757637987602,0.12,231.82,231.52,26.0]
[1757637987804,0.12,231.82,231.53,1.10190947]
[1757637988005,0.12,231.82,231.54,26.67]
[1757637988226,8.18832733,231.77,231.54,22.10187216]
[1757637988541,8.18832733,231.75,231.55,0.43187216]
[1757637988718,0.1,231.68,231.56,59.62]
[1757637988922,0.1,231.68,231.57,0.43183486]
[1757637989234,0.06,231.82,231.58,31.06]
[1757637989410,0.06,231.82,231.62,20.0]
[1757637989613,0.06,231.82,231.63,0.431723]
[1757637990110,0.06,231.82,231.65,20.0]
[1757637990306,0.06,231.82,231.69,26.0]
[1757637990516,0.06,231.82,231.7,0.43159257]
[1757637990715,0.06,231.82,231.73,26.0]
[1757637991026,0.06,231.82,231.77,26.0]
[1757637991237,0.06,231.82,231.78,59.24]
[1757637991537,0.06,231.82,231.77,26.0]
[1757637991827,8.18832733,231.8,231.58,31.06]
[1757637992031,13.59559401,231.75,231.63,0.67]
[1757637992223,0.78,231.79,231.63,0.67]
[1757637992425,8.18832733,231.74,231.64,59.1]
[1757637992811,13.59559401,231.76,231.63,0.67]
[1757637993010,13.59559401,231.76,231.65,59.06]
[1757637993011,13.59559401,231.73,231.65,59.06]
[1757637993214,13.59559401,231.73,231.66,0.67]
[1757637993446,17.91018566,231.78,231.66,0.67]
[1757637993635,13.59559401,231.74,231.66,0.67]
[1757637993840,13.59559401,231.7,231.61,0.67]
[1757637994135,13.59559401,231.66,231.58,31.06]
[1757637994334,13.59559401,231.64,231.58,31.06]
[1757637994633,13.59559401,231.6,231.49,0.67]
[1757637994944,8.18832733,231.63,231.41,31.04]
[1757637994945,8.18832733,231.63,231.5,59.43]
[1757637995238,13.59559401,231.6,231.51,58.68]
[1757637995426,13.59559401,231.6,231.41,31.04]
[1757637995427,13.59559401,231.56,231.45,0.67]
[1757637995730,0.43187216,231.59,231.46,58.6]
[1757637995917,13.59559401,231.56,231.46,58.6]
[1757637996123,13.59559401,231.58,231.47,58.54]
[1757637996307,13.59559401,231.6,231.5,26.0]
[1757637996512,21.78392134,231.6,231.5,26.67]
[1757637996740,13.59559401,231.68,231.51,1.10194678]
[1757637996916,13.59559401,231.62,231.51,0.67]
[1757637997114,13.59559401,231.6,231.52,58.4]
[1757637997628,13.59559401,231.66,231.51,26.67]
[1757637997812,8.18832733,231.63,231.52,58.28]
[1757637998016,8.18832733,231.63,231.51,26.67]
[1757637998216,17.91226499,231.66,231.52,58.24]
[1757637998438,13.59559401,231.61,231.51,0.67]
[1757637998740,13.59559401,231.64,231.52,58.2]
[1757637998934,13.59559401,231.62,231.46,0.67]
[1757637999136,1.15187216,231.63,231.47,58.1]
[1757637999137,0.43187216,231.61,231.47,58.1]
[1757637999444,13.59559401,231.64,231.5,26.0]
[1757637999642,13.59559401,231.64,231.51,0.67]
[1757637999845,8.18832733,231.65,231.51,0.67]
[1757638000060,13.59559401,231.66,231.52,0.43192812]
[1757638000354,8.18832733,231.69,231.53,0.67]
[1757638000648,0.43187216,231.68,231.53,0.67]
[1757638000833,13.59559401,231.69,231.57,26.0]
[1757638001025,0.43187216,231.68,231.57,26.0]
[1757638001226,0.43187216,231.68,231.41,31.04]
[1757638001227,13.59559401,231.6,231.49,0.67]
[1757638001550,13.59559401,231.58,231.5,83.78]
[1757638001722,13.59559401,231.56,231.51,57.74]
[1757638001923,4.31643578,231.68,231.52,0.67]
[1757638002245,1.15187216,231.67,231.53,57.68]
[1757638002432,13.59559401,231.64,231.54,0.67]
[1757638003521,21.78392134,231.7,231.56,26.0]
[1757638003730,13.59559401,231.68,231.57,57.48]
[1757638003930,0.72,231.68,231.57,57.48]
[1757638004131,14.02746617,231.67,231.57,57.48]
[1757638004534,8.18832733,231.6,231.58,57.36]
[1757638004750,13.59559401,231.59,231.57,57.34]
[1757638004933,13.59559401,231.64,231.55,57.3]
[1757638005130,8.18832733,231.59,231.54,57.3]
[1757638005329,8.18832733,231.59,231.54,57.24]
[1757638006034,13.59559401,231.66,231.55,0.67]
[1757638006341,13.59559401,231.64,231.55,0.67]
[1757638006548,13.59559401,231.66,231.55,0.67]
[1757638006931,13.59559401,231.69,231.57,26.0]
[1757638007254,13.59559401,231.66,231.57,26.0]
[1757638007463,13.59559401,231.58,231.51,0.03]
[1757638007650,13.59559401,231.62,231.51,56.95]
[1757638007846,26.0,231.71,231.51,0.03]
[1757638007847,8.18832733,231.55,231.51,0.03]
[1757638008237,13.59559401,231.55,231.51,0.03]
[1757638008673,8.18832733,231.53,231.51,0.03]
[1757638008841,0.72,231.54,231.51,0.03]
[1757638008842,13.59559401,231.52,231.51,0.03]
[1757638009167,13.59559401,231.63,231.51,0.7]
[1757638009350,13.59559401,231.57,231.51,0.7]
[1757638009959,13.59559401,231.57,231.51,0.03]
[1757638010143,5.03783107,231.6,231.51,0.03]
[1757638010144,13.59559401,231.53,231.51,0.03]
[1757638010471,13.59559401,231.58,231.51,0.03]
[1757638010765,21.78392134,231.52,231.51,0.03]
[1757638011337,13.59559401,231.52,231.51,0.03]
[1757638011658,8.18832733,231.55,231.51,0.03]
[1757638011966,13.59559401,231.6,231.51,57.1]
[1757638012268,8.90832733,231.63,231.51,57.1]
[1757638012269,8.18832733,231.63,231.51,57.1]
[1757638012473,13.59559401,231.62,231.51,57.1]
[1757638012637,21.78392134,231.65,231.54,26.0]
[1757638012841,0.72,231.7,231.55,0.67]
[1757638013057,0.43187216,231.78,231.55,1.10187216]
[1757638013255,8.62019949,231.77,231.56,0.67]
[1757638013455,8.18832733,231.77,231.57,0.43183486]
[1757638013765,0.06,231.79,231.59,26.0]
[1757638014075,0.06,231.79,231.61,26.0]
[1757638014271,0.06,231.79,231.58,4.83405128]
[1757638014272,0.06,231.79,231.65,26.0]
[1757638014450,7.2647236,231.78,231.65,26.0]
[1757638014649,0.06,231.79,231.69,26.0]
[1757638014863,7.3247236,231.79,231.66,0.71]
[1757638015063,0.06,231.79,231.7,26.0]
[1757638015262,0.06,231.79,231.71,0.71]
[1757638015865,0.06,231.79,231.75,26.0]
[1757638016062,0.06,231.79,231.76,0.71]
[1757638016265,0.06,231.84,231.76,0.71]
[1757638016568,7.2647236,231.98,231.77,0.43146222]
[1757638016760,7.2647236,231.98,231.78,0.71]
[1757638016954,7.2647236,232.0,231.79,0.43142499]
[1757638017189,7.2647236,231.98,231.83,26.0]
[1757638017355,0.43187216,232.01,231.84,0.71]
[1757638017560,13.59559401,231.95,231.84,26.71]
[1757638017755,13.59559401,231.9,231.82,55.74]
[1757638018092,15.08495847,232.02,231.52,39.05206114]
[1757638018093,20.86031761,231.99,231.86,26.0]
[1757638018257,20.86031761,231.97,231.87,55.68]
[1757638018462,13.59559401,231.97,231.88,55.66]
[1757638018769,15.08637069,232.0,231.86,0.71]
[1757638018770,13.59559401,232.0,231.86,0.71]
[1757638018972,7.2647236,231.98,231.89,55.64]
[1757638019350,7.2647236,231.98,231.86,0.71]
[1757638019577,7.2647236,231.98,231.87,55.5]
[1757638019761,13.59559401,232.0,231.88,0.71]
[1757638020077,7.2647236,231.97,231.89,55.46]
[1757638020254,1.10187216,232.0,231.88,0.71]
[1757638020458,13.59559401,232.02,231.88,0.71]
[1757638020971,20.86031761,232.02,231.88,0.71]
[1757638021150,13.59559401,232.02,231.89,55.28]
[1757638021359,0.1,232.03,231.92,26.0]
[1757638021862,0.1,232.03,231.93,55.91]
[1757638022069,0.1,232.03,231.9,26.0]
[1757638022070,0.1,232.03,231.94,0.71]
[1757638022250,0.1,232.03,231.98,26.0]
[1757638022455,0.1,232.03,231.99,0.71]
[1757638022687,0.1,232.03,232.0,55.1]
[1757638022985,0.1,232.03,232.01,55.06]
[1757638023569,0.1,232.03,231.94,0.71]
[1757638023875,7.2647236,232.01,231.9,26.71]
[1757638024078,0.06,232.02,231.9,0.71]
[1757638024282,7.2647236,232.0,231.9,0.71]
[1757638024462,1.16187216,232.02,231.9,0.71]
[1757638024463,7.2647236,231.99,231.9,0.71]
[1757638024662,7.2647236,231.99,231.91,54.82]
[1757638024982,13.59559401,231.92,231.77,0.71]
[1757638025174,7.2647236,231.89,231.78,54.76]
[1757638025378,14.26559401,231.92,231.78,54.76]
[1757638025576,13.59559401,231.91,231.77,0.71]
[1757638025779,0.67,231.97,231.77,0.71]
[1757638026075,11.57506842,232.0,231.81,26.0]
[1757638026381,0.73,232.02,231.85,26.0]
[1757638026567,13.59559401,232.01,231.86,0.71]
[1757638026767,0.06,232.02,231.86,0.71]
[1757638026982,0.06,232.02,231.87,0.43127614]
[1757638027182,0.06,232.02,231.88,0.71]
[1757638027492,0.06,232.02,231.89,71.04683295]
[1757638027665,0.06,232.02,231.93,26.0]
[1757638027857,0.06,232.02,231.9,60.06405128]
[1757638027858,0.06,232.02,231.9,0.71]
[1757638028055,0.06,232.02,231.92,26.0]
[1757638028259,0.06,232.02,231.96,26.0]
[1757638028666,0.06,232.02,232.0,26.0]
[1757638029061,0.06,232.02,232.01,0.71]
[1757638029361,0.43187216,232.25,232.01,0.71]
[1757638029562,4.54259683,232.2,232.01,0.71]
[1757638029869,13.59559401,232.2,232.01,0.71]
[1757638030186,5.21259683,232.21,232.05,26.0]
[1757638030372,0.67,232.21,232.09,26.0]
[1757638030554,0.43187216,232.31,232.13,26.0]
[1757638030555,4.54259683,232.25,232.13,26.0]
[1757638030759,4.54259683,232.27,232.14,0.71]
[1757638030978,0.67,232.28,232.14,0.71]
[1757638031175,4.54259683,232.26,232.14,0.71]
[1757638031378,0.67,232.25,232.15,54.14]
[1757638031785,0.67,232.36,232.18,26.0]
[1757638031967,5.21259683,232.4,232.19,1.14068176]
[1757638032163,0.67,232.4,232.2,0.71]
[1757638032399,0.43187216,232.54,232.21,0.43064467]
[1757638032585,0.67,232.45,232.22,0.71]
[1757638032792,0.67,232.5,232.26,13.04]
[1757638032967,1.10187216,232.49,232.29,26.0]
[1757638033171,1.10187216,232.49,232.26,4.83405128]
[1757638033172,7.22642065,232.43,232.3,26.71]
[1757638033368,7.22642065,232.43,232.34,26.0]
[1757638033591,7.22642065,232.41,232.35,53.96]
[1757638033787,13.59559401,232.43,232.33,53.94]
[1757638033989,7.22642065,232.36,232.11,20.0]
[1757638034174,13.59559401,232.35,232.23,0.71]
[1757638034369,7.22642065,232.35,232.24,54.57]
[1757638034569,0.43187216,232.36,232.24,0.71]
[1757638034789,13.59559401,232.33,232.25,53.92]
[1757638035091,13.59559401,232.35,232.25,53.92]
[1757638035274,13.59559401,232.35,232.23,0.71]
[1757638035675,20.82201466,232.35,232.24,53.82]
[1757638035887,13.59559401,232.35,232.24,53.82]
[1757638036078,17.89954682,232.35,232.24,53.82]
[1757638036275,7.22642065,232.37,232.24,53.82]
[1757638036477,0.1,232.44,232.25,0.71]
[1757638036478,13.59559401,232.4,232.25,0.71]
[1757638036681,0.67,232.41,232.27,26.0]
[1757638036887,0.1,232.44,232.28,0.71]
[1757638037195,0.53187216,232.44,232.28,0.71]
[1757638037497,0.1,232.44,232.32,26.0]
[1757638037696,0.1,232.44,232.32,26.71]
[1757638038200,0.1,232.44,232.33,1.14042224]
[1757638038506,0.1,232.44,232.34,0.71]
[1757638038792,7.32642065,232.44,232.34,54.07]
[1757638039003,0.1,232.44,232.35,0.71]
[1757638039795,0.1,232.44,232.35,53.28]
[1757638039796,0.53187216,232.44,232.35,53.28]
[1757638039970,7.22642065,232.43,232.35,53.99]
[1757638040166,7.22642065,232.41,232.36,53.24]
[1757638040390,13.59559401,232.42,232.3,0.71]
[1757638040592,0.43187216,232.41,232.31,53.16]
[1757638040893,0.1,232.44,232.32,53.87]
[1757638041068,0.1,232.44,232.35,26.0]
[1757638041493,0.1,232.44,232.36,0.71]
[1757638041795,0.1,232.44,232.37,0.43034815]
[1757638041982,0.67,232.57,232.41,26.0]
[1757638042185,4.96980021,232.57,232.45,26.0]
[1757638042680,13.59559401,232.56,232.45,26.0]
[1757638042993,4.96980021,232.57,232.46,52.96]
[1757638043287,4.96980021,232.57,232.42,0.71]
[1757638043288,0.06,232.47,232.42,0.71]
[1757638043470,0.06,232.47,232.43,53.57]
[1757638043671,0.06,232.47,232.46,26.0]
[1757638043870,20.0,232.72,232.46,26.0]
[1757638043871,0.67,232.63,232.46,26.0]
[1757638044089,7.22642065,232.62,232.47,0.71]
[1757638044288,0.67,232.63,232.48,78.78]
[1757638044487,13.59559401,232.61,232.49,0.71]
[1757638044689,13.59559401,232.62,232.49,0.71]
[1757638044901,7.22642065,232.58,232.5,52.7]
[1757638045279,14.02746617,232.62,232.5,52.7]